Workbook

Sheet Non-SDA Suckler
F1: AHDB Beef and Lamb
F2: Stocktake
F3: Costs of Production 2015/16
C5: Non-SDA Suckler Herds
B7: (£ per cow to bull) | F7: (£ per lwt kg calf output)
A8: Financial Performance (£ per cow to bull) | B8: Bottom Third | C8: Average | D8: Top Third | F8: Bottom Third | G8: Average | H8: Top Third
A10: Number of herds in sample | B10: 31 | C10: 95 | D10: 31 | F10: =B10 -> 31 | G10: 95 | H10: 31
A11: Average herd size (cows to bull) | B11: 64 | C11: 87.75789474 | D11: 90.96774194 | F11: 64 | G11: 87.75789474 | H11: 90.96774194
A13: Calf output | B13: 517.797379 | C13: 537.9769341 | D13: 591.0608156 | F13: =B13/(B$75*(B$66/100)) -> 2.01466121 | G13: 2.055563284 | H13: 2.126714851
A14: Other income | B14: 3.912867944 | C14: 5.016718244 | D14: 8.809485816 | F14: 0.01522430121 | G14: 0.01916844603 | H14: 0.03169769307
A15: Gross Output | B15: 521.710247 | C15: 542.9936524 | D15: 599.8703014 | F15: 2.029885511 | G15: 2.07473173 | H15: 2.158412545
A16: Replacement costs | B16: 99.53798542 | C16: 62.21491184 | D16: 23.57979339 | F16: 0.3872853094 | G16: 0.2377177912 | H16: 0.08484320981
A17: Output less replacement costs | B17: 422.1722616 | C17: 480.7787406 | D17: 576.290508 | F17: 1.642600202 | G17: 1.837013939 | H17: 2.073569335
A19: Variable Costs
A20: Purchased feed including minerals | B20: 35.43527418 | C20: 26.35886977 | D20: 27.72781548 | F20: =B20/(B$75*(B$66/100)) -> 0.1378726028 | G20: =C20/(C$75*(C$66/100)) -> 0.1007149591 | H20: =D20/(D$75*(D$66/100)) -> 0.09976834095
A21: Home-grown feed | B21: 7.744920915 | C21: 10.16296975 | D21: 12.45252342 | F21: 0.03013416517 | G21: 0.03883182744 | H21: 0.04480582337
A22: Purchased forage | B22: 5.147527267 | C22: 4.53981226 | D22: 5.1719577 | F22: 0.02002814988 | G22: 0.01734622956 | H22: 0.01860938665
A23: Home-grown forage (excludes contract) | B23: 44.71430866 | C23: 39.20553929 | D23: 36.49750772 | F23: 0.1739757419 | G23: 0.149800971 | H23: 0.1313228515
A24: Total feed and forage | B24: 93.04203102 | C24: 80.26719108 | D24: 81.84980432 | F24: 0.3620106598 | G24: 0.3066939871 | H24: 0.2945064024
A25: Vet and medicine | B25: 38.70034778 | C25: 34.96053616 | D25: 37.245 | F25: 0.1505764468 | G25: 0.1335811816 | H25: 0.1340124274
A26: Bedding | B26: 42.81406754 | C26: 28.44869497 | D26: 25.12680851 | F26: 0.1665822281 | G26: 0.1087000002 | H26: 0.09040957448
A27: Other livestock expenses | B27: 25.51375 | C27: 21.63133861 | D27: 19.56399645 | F27: 0.09926964587 | G27: 0.08265147187 | H27: 0.07039384225
A28: Total variable costs | B28: 200.0701963 | C28: 165.3077608 | D28: 163.7856093 | F28: 0.7784389806 | G28: 0.6316266408 | H28: 0.5893222466
A30: Gross Margin | B30: 222.1020652 | C30: 315.4709797 | D30: 412.5048988 | F30: =B30/(B$75*(B$66/100)) -> 0.8641612213 | G30: =C30/(C$75*(C$66/100)) -> 1.205387298 | H30: =D30/(D$75*(D$66/100)) -> 1.484247088
A32: Fixed Costs
A33: Labour - paid | B33: 75.87506124 | C33: 61.24933809 | D33: 28.79912867 | F33: =B33/(B$75*(B$66/100)) -> 0.2952169109 | G33: =C33/(C$75*(C$66/100)) -> 0.2340284175 | H33: =D33/(D$75*(D$66/100)) -> 0.1036230673
A34: Machinery repairs and spares | B34: 32.87123717 | C34: 23.02139798 | D34: 24.56549452 | F34: 0.1278963725 | G34: 0.08796276835 | H34: 0.08838989264
A35: Contracting | B35: 55.55567923 | C35: 40.02346873 | D35: 34.37810048 | F35: 0.2161576641 | G35: 0.1529262086 | H35: 0.1236969444
A36: Electricity | B36: 3.598387097 | C36: 2.145767062 | D36: 1.826567376 | F36: 0.01400070992 | G36: 0.008198790153 | H36: 0.006572230578
A37: Fuel | B37: 37.48647457 | C37: 23.89843983 | D37: 19.49976117 | F37: 0.1458534734 | G37: 0.09131386931 | H37: 0.0701627152
A38: Property maintenance and water | B38: 28.694079 | C38: 20.25048248 | D38: 15.82304569 | F38: 0.1116437631 | G38: 0.07737534014 | H38: 0.0569334075
A39: Land Rent (Actual) | B39: 53.78493506 | C39: 50.46449814 | D39: 50.84121454 | F39: 0.2092680008 | G39: 0.1928204779 | H39: 0.1829334024
A40: Overheads | B40: 25.43396918 | C40: 19.29429177 | D40: 18.90684298 | F40: 0.09895923231 | G40: 0.07372181823 | H40: 0.06802931728
A41: Cash Only fixed costs | B41: 313.2998225 | C41: 240.3476841 | D41: 194.6401554 | F41: 1.218996127 | G41: 0.9183476902 | H41: 0.7003409773
A42: Cash Only Cost of Production | B42: 612.9080043 | C42: 467.8703567 | D42: 382.0055581 | F42: 2.384720417 | G42: 1.787692122 | H42: 1.374506434
A43: Cash Only Net Margin | B43: -91.19775733 | C43: 75.12329565 | D43: 217.8647433 | F43: -0.3548349057 | G43: 0.2870396081 | H43: 0.7839061109
A45: Depreciation | B45: 127.0707181 | C45: 74.2970788 | D45: 50.26848032 | F45: =B45/(B$75*(B$66/100)) -> 0.4944104723 | G45: 0.2838827051 | H45: 0.1808726291
A46: Finance costs (Imputed) | B46: 37.07129187 | C46: 33.61611483 | D46: 32.23832633 | F46: 0.1442380683 | G46: 0.1284442641 | H46: 0.1159977545
A47: Labour - unpaid (Imputed) | B47: 102.4112898 | C47: 61.2906401 | D47: 55.91390935 | F47: 0.3984648462 | G47: 0.2341862289 | H47: 0.2011856281
A48: Land Rent (Imputed) | B48: 87.75436772 | C48: 61.67883106 | D48: 52.91636615 | F48: 0.3414372645 | G48: 0.235669473 | H48: 0.1904000719
A49: Non-Cash fixed costs | B49: 354.3076675 | C49: 230.8826648 | D49: 191.3370821 | F49: 1.378550651 | G49: 0.8821826711 | H49: 0.6884560835
A50: Full Investment fixed costs | B50: 667.60749 | C50: 471.2303489 | D50: 385.9772376 | F50: 2.597546778 | G50: 1.800530361 | H50: 1.388797061
A51: Full Investment Cost of Production | B51: 967.2156718 | C51: 698.7530215 | D51: 573.3426402 | F51: 3.763271068 | G51: 2.669874793 | H51: 2.062962517
A52: Full Investment Net Margin | B52: -445.5054248 | C52: -155.7593691 | D52: 26.52766118 | F52: -1.733385557 | G52: -0.595143063 | H52: 0.09545002734
A54: Physical Performance
A56: Cow to bull ratio | B56: 29.70059901 | C56: 32.76049519 | D56: 32.79069767
A57: Age at first calving
A58: Herds 2 year policy (%) | B58: 29.03225806 | C58: 46.31578947 | D58: 54.83870968
A59: Herds 2.5 year policy (%) | B59: 51.61290323 | C59: 38.94736842 | D59: 32.25806452
A60: Herds more than 2.5 year policy (%) | B60: 19.35483871 | C60: 14.73684211 | D60: 12.90322581
A62: Percentage of cows/heifers scanned in-calf (%) | B62: 92.60077405 | C62: 91.37179497 | D62: 93.32048673
A63: Calves born alive per 100 cows/heifers to bull | B63: 88.30645161 | C63: 87.99328296 | D63: 90.03546099
A64: Calves born dead per 100 cows/heifers to bull | B64: 2.620967742 | C64: 2.674823078 | D64: 3.04964539
A65: Calves died from birth to weaning per 100 cows/heifers to bull | B65: 3.528225806 | C65: 3.286553916 | D65: 3.014184397
A66: Calves weaned per 100 cows/heifers to bull* | B66: 86.94556452 | C66: 85.49838071 | D66: 86.20567376
A67: Calf losses from birth to weaning (% of born alive) | B67: 3.99543379 | C67: 3.735005453 | D67: 3.347774714
A68: Calving period (first to last calf - weeks) | B68: 15.9974589 | C68: 15.17500788 | D68: 14.56749277
A69: Cows and heifers calving in first 3 weeks (%) | B69: 32.0055121 | C69: 35.13194225 | D69: 39.2569044
A70: Empty cows/heifers (%) | B70: 9.022177419 | C70: 9.691735636 | D70: 7.269503546
A71: Cow mortality (%) | B71: 1.512096774 | C71: 1.607292791 | D71: 1.34751773
A72: Herd replacement rate (%) | B72: 14.56653226 | C72: 16.66066931 | D72: 16.38297872
A74: Average age at weaning (days) | B74: 238.3982609 | C74: 234.3319304 | D74: 235.1225833
A75: Average weight at weaning (kg per head) | B75: 295.6040579 | C75: 306.1081652 | D75: 322.394077
A76: Daily liveweight gain to weaning (kg per day) | B76: 1.077974389 | C76: 1.142630179 | D76: 1.211344861
A77: Weaned calf weight produced per forage hectare (kg at 200 days) | B77: 203.8752385 | C77: 291.9916253 | D77: 353.3551392
A79: Return per calf (£ per head) | B79: 607.8144928 | C79: 636.4174663 | D79: 689.9841629
A80: Calf price (£ per kg lwt) | B80: 2.071448384 | C80: 2.087473242 | D80: 2.151478353
A81: Weaned calves sold at weaning (%) | B81: 22.2129495 | C81: 9.490706883 | D81: 12.43033031
A82: Weaned calves retained at weaning (%) | B82: 77.7870505 | C82: 90.50929312 | D82: 87.56966969
A84: Total FW cow concentrate use (kg per cow) | B84: 168.3946569 | C84: 135.148734 | D84: 102.159573
A85: Total DM cow concentrate use (kg per cow) | B85: 118.6417336 | C85: 83.82673579 | D85: 79.95010525
A86: Average concentrate cost (£ per tonne) | B86: 174.7383235 | C86: 139.1189398 | D86: 154.6126069
A87: Total FW forage (kg per cow) | B87: 4240.171372 | C87: 3659.703731 | D87: 3626.790781
A88: Total DM forage (kg per cow) | B88: 1655.077122 | C88: 1390.148016 | D88: 1251.151063
A89: Creep feed fed (kg per calf weaned) | B89: 46.27536216 | C89: 56.65333918 | D89: 79.25956461
A91: Number of grazing weeks | B91: 31.86398662 | C91: 32.39718417 | D91: 31.78630871
A92: Stocking rate (LU per ha) | B92: 1.106644353 | C92: 1.455154143 | D92: 1.691202039
A93: Inorganic nitrogen use (kg per ha) | B93: 34.89938374 | C93: 35.3717811 | D93: 33.88380097
A95: Labour use - paid hours per cow | B95: 6.841072249 | C95: 5.368416041 | D95: 3.153708188
A96: Labour use - unpaid hours per cow | B96: 10.50375799 | C96: 6.149415418 | D96: 5.62398024
A98: *includes calves purchased to put on cows

Sheet SDA Suckler
F1: AHDB Beef and Lamb
F2: Stocktake
F3: Costs of Production 2015/16
C5: SDA Suckler Herds
B7: (£ per cow to bull) | F7: (£ per lwt kg calf output)
A8: Financial Performance (£ per cow to bull) | B8: Bottom Third | C8: Average | D8: Top Third | F8: Bottom Third | G8: Average | H8: Top Third
A10: Number of herds in sample | B10: 8 | C10: 26 | D10: 8 | F10: =B10 -> 8 | G10: 26 | H10: 8
A11: Average herd size (cows to bull) | B11: 65 | C11: 79.76923077 | D11: 79.625 | F11: 65 | G11: 79.76923077 | H11: 79.625
A13: Calf output | B13: 510.2288462 | C13: 641.0151446 | D13: 703.9500785 | F13: =B13/(B$75*(B$66/100)) -> 2.09055811 | G13: 2.348443159 | H13: 2.453955535
A14: Other income | B14: 0 | C14: 0 | D14: 0 | F14: 0 | G14: 0 | H14: 0
A15: Gross Output | B15: 510.2288462 | C15: 641.0151446 | D15: 703.9500785 | F15: 2.09055811 | G15: 2.348443159 | H15: 2.453955535
A16: Replacement costs | B16: 39.47512082 | C16: 38.27967893 | D16: 19.99893299 | F16: 0.1617412159 | G16: 0.1402426305 | H16: 0.06971587021
A17: Output less replacement costs | B17: 470.7537253 | C17: 602.7354657 | D17: 683.9511455 | F17: 1.928816894 | G17: 2.208200528 | H17: 2.384239665
A19: Variable Costs
A20: Purchased feed including minerals | B20: 17.95407307 | C20: 31.11075502 | D20: 15.38543171 | F20: =B20/(B$75*(B$66/100)) -> 0.07356313417 | G20: =C20/(C$75*(C$66/100)) -> 0.1139783364 | H20: =D20/(D$75*(D$66/100)) -> 0.05363329938
A21: Home-grown feed | B21: 8.317307692 | C21: 5.413596938 | D21: 0 | F21: 0.03407846339 | G21: 0.01983342328 | H21: 0
A22: Purchased forage | B22: 20.58846154 | C22: 9.417068467 | D22: 6.153846154 | F22: 0.08435700093 | G22: 0.03450066695 | H22: 0.02145218147
A23: Home-grown forage (excludes contract) | B23: 34.82231141 | C23: 42.32394606 | D23: 38.0665726 | F23: 0.1426772831 | G23: 0.1550593343 | H23: 0.1326992913
A24: Total feed and forage | B24: 81.68215371 | C24: 88.26536649 | D24: 59.60585047 | F24: 0.3346758816 | G24: 0.3233717609 | H24: 0.2077847722
A25: Vet and medicine | B25: 35.16257692 | C25: 34.19639826 | D25: 20.84020408 | F25: 0.1440714513 | G25: 0.1252829956 | H25: 0.07264852399
A26: Bedding | B26: 10.75961538 | C26: 28.5138621 | D26: 32.7044741 | F26: 0.04408531853 | G26: 0.1044642782 | H26: 0.1140071259
A27: Other livestock expenses | B27: 10.49155769 | C27: 14.28272903 | D27: 17.18339089 | F27: 0.04298700708 | G27: 0.05232665336 | H27: 0.05990094822
A28: Total variable costs | B28: 138.0959037 | C28: 165.2583559 | D28: 130.3339195 | F28: 0.5658196585 | G28: 0.6054456881 | H28: 0.4543413703
A30: Gross Margin | B30: 332.6578216 | C30: 437.4771098 | D30: 553.617226 | F30: =B30/(B$75*(B$66/100)) -> 1.362997236 | G30: =C30/(C$75*(C$66/100)) -> 1.60275484 | H30: =D30/(D$75*(D$66/100)) -> 1.929898295
A32: Fixed Costs
A33: Labour - paid | B33: 13.08649941 | C33: 44.08705597 | D33: 43.1288808 | F33: =B33/(B$75*(B$66/100)) -> 0.05361924888 | G33: =C33/(C$75*(C$66/100)) -> 0.1615187189 | H33: =D33/(D$75*(D$66/100)) -> 0.1503463939
A34: Machinery repairs and spares | B34: 32.2021732 | C34: 25.77915059 | D34: 24.26929285 | F34: 0.1319418039 | G34: 0.09444530345 | H34: 0.08460225711
A35: Contracting | B35: 28.63575367 | C35: 31.79289347 | D35: 26.85527039 | F35: 0.1173291309 | G35: 0.1164774402 | H35: 0.09361692177
A36: Electricity | B36: 1.750192308 | C36: 2.251735776 | D36: 2.708006279 | F36: 0.007171054226 | G36: 0.008249529708 | H36: 0.009440054348
A37: Fuel | B37: 27.3353677 | C37: 24.28741126 | D37: 21.67930446 | F37: 0.1120010659 | G37: 0.08898012049 | H37: 0.07557361068
A38: Property maintenance and water | B38: 10.26896989 | C38: 13.7077385 | D38: 9.552014565 | F38: 0.04207499917 | G38: 0.05022010006 | H38: 0.03329812686
A39: Land Rent (Actual) | B39: 84.50806017 | C39: 61.85571446 | D39: 42.67900979 | F39: 0.3462544541 | G39: 0.2266165326 | H39: 0.1487781527
A40: Overheads | B40: 19.52715602 | C40: 22.62201023 | D40: 21.60806771 | F40: 0.08000851912 | G40: 0.08287870515 | H40: 0.07532528086
A41: Cash Only fixed costs | B41: 217.3141724 | C41: 226.3837102 | D41: 192.4798468 | F41: 0.8904002762 | G41: 0.8293864506 | H41: 0.6709807983
A42: Cash Only Cost of Production | B42: 394.8851969 | C42: 429.9217451 | D42: 342.8126994 | F42: 1.617961151 | G42: 1.575074769 | H42: 1.195038039
A43: Cash Only Net Margin | B43: 115.3436493 | C43: 211.0933996 | D43: 361.1373791 | F43: 0.4725969597 | G43: 0.7733683896 | H43: 1.258917497
A45: Depreciation | B45: 99.63088642 | C45: 72.20883795 | D45: 68.78949599 | F45: =B45/(B$75*(B$66/100)) -> 0.4082171348 | G45: 0.2645465601 | H45: 0.2397987721
A46: Finance costs (Imputed) | B46: 36.29533837 | C46: 33.61971388 | D46: 32.90620426 | F46: 0.1487127092 | G46: 0.1231702367 | H46: 0.1147103531
A47: Labour - unpaid (Imputed) | B47: 103.8516552 | C47: 66.11558642 | D47: 66.14438831 | F47: 0.4255108695 | G47: 0.242223133 | H47: 0.230577981
A48: Land Rent (Imputed) | B48: 43.53445524 | C48: 36.32795928 | D48: 58.93768018 | F48: 0.1783735066 | G48: 0.1330922493 | H48: 0.2054555443
A49: Non-Cash fixed costs | B49: 283.3123352 | C49: 208.2720975 | D49: 226.7777687 | F49: 1.16081422 | G49: 0.7630321791 | H49: 0.7905426505
A50: Full Investment fixed costs | B50: 500.6265076 | C50: 434.6558078 | D50: 419.2576156 | F50: 2.051214496 | G50: 1.59241863 | H50: 1.461523449
A51: Full Investment Cost of Production | B51: 678.1975321 | C51: 638.1938426 | D51: 569.5904681 | F51: 2.778775371 | G51: 2.338106948 | H51: 1.985580689
A52: Full Investment Net Margin | B52: -167.9686859 | C52: 2.821302053 | D52: 134.3596104 | F52: -0.6882172604 | G52: 0.01033621056 | H52: 0.468374846
A54: Physical Performance
A56: Cow to bull ratio | B56: 35.61643836 | C56: 31.55972606 | D56: 26.52324766
A57: Age at first calving
A58: Herds 2 year policy (%) | B58: 25 | C58: 34.61538462 | D58: 50
A59: Herds 2.5 year policy (%) | B59: 25 | C59: 42.30769231 | D59: 37.5
A60: Herds more than 2.5 year policy (%) | B60: 50 | C60: 23.07692308 | D60: 12.5
A62: Percentage of cows/heifers scanned in-calf (%) | B62: n.a. | C62: 93.66812574 | D62: 94.66852321
A63: Calves born alive per 100 cows/heifers to bull | B63: 86.15384615 | C63: 90.06750241 | D63: 93.87755102
A64: Calves born dead per 100 cows/heifers to bull | B64: 5 | C64: 3.085824494 | D64: 2.51177394
A65: Calves died from birth to weaning per 100 cows/heifers to bull | B65: 1.730769231 | C65: 1.832208293 | D65: 1.726844584
A66: Calves weaned per 100 cows/heifers to bull* | B66: 85.19230769 | C66: 90.54966249 | D66: 92.46467818
A67: Calf losses from birth to weaning (% of born alive) | B67: 2.008928571 | C67: 2.034261242 | D67: 1.839464883
A68: Calving period (first to last calf - weeks) | B68: 12.38174274 | C68: 14.12851948 | D68: 16.99551469
A69: Cows and heifers calving in first 3 weeks (%) | B69: 30.8967266 | C69: 32.09423997 | D69: 29.90113689
A70: Empty cows/heifers (%) | B70: 10.57692308 | C70: 7.81099325 | D70: 5.494505495
A71: Cow mortality (%) | B71: 2.884615385 | C71: 2.31436837 | D71: 0.7849293564
A72: Herd replacement rate (%) | B72: 12.30769231 | C72: 14.22372228 | D72: 13.6577708
A74: Average age at weaning (days) | B74: 235.9548533 | C74: 239.4179979 | D74: 248.8692699
A75: Average weight at weaning (kg per head) | B75: 286.4853257 | C75: 301.4403611 | D75: 310.2410846
A76: Daily liveweight gain to weaning (kg per day) | B76: 1.056337434 | C76: 1.105718878 | D76: 1.117969584
A77: Weaned calf weight produced per forage hectare (kg at 200 days) | B77: 202.9049208 | C77: 234.5484659 | D77: 217.1270745
A79: Return per calf (£ per head) | B79: 602.0406321 | C79: 714.8894622 | D79: 767.4298812
A80: Calf price (£ per kg lwt) | B80: 2.07707681 | C80: 2.364602555 | D80: 2.471563598
A81: Weaned calves sold at weaning (%) | B81: 13.88278388 | C81: 17.59609679 | D81: 14.81746545
A82: Weaned calves retained at weaning (%) | B82: 86.11721612 | C82: 82.40390321 | D82: 85.18253455
A84: Total FW cow concentrate use (kg per cow) | B84: 85.19230774 | C84: 76.84185076 | D84: 48.57142866
A85: Total DM cow concentrate use (kg per cow) | B85: 73.18846158 | C85: 56.86576625 | D85: 42.25714294
A86: Average concentrate cost (£ per tonne) | B86: 202.0144833 | C86: 181.1688103 | D86: 228.9915962
A87: Total FW forage (kg per cow) | B87: 4100.384615 | C87: 5507.618131 | D87: 5253.532182
A88: Total DM forage (kg per cow) | B88: 1269.686536 | C88: 1648.063168 | D88: 1553.602837
A89: Creep feed fed (kg per calf weaned) | B89: 5.643340858 | C89: 80.77742282 | D89: 3.565365025
A91: Number of grazing weeks | B91: 34.18824306 | C91: 32.07141348 | D91: 33.09807892
A92: Stocking rate (LU per ha) | B92: 1.0356447 | C92: 1.138519736 | D92: 1.047207973
A93: Inorganic nitrogen use (kg per ha) | B93: 32.98851552 | C93: 36.71696728 | D93: 21.90080687
A95: Labour use - paid hours per cow | B95: 1.546145674 | C95: 4.445656281 | D95: 4.695959755
A96: Labour use - unpaid hours per cow | B96: 10.28318961 | C96: 6.714449782 | D96: 6.776145156
A100: *includes calves purchased to put on cows

Sheet Spring
F1: AHDB Beef and Lamb
F2: Stocktake
F3: Costs of Production 2015/16
C5: Spring Calving Suckler Herds
B7: (£ per cow to bull) | F7: (£ per lwt kg calf output)
A8: Financial Performance (£ per cow to bull) | B8: Bottom Third | C8: Average | D8: Top Third | F8: Bottom Third | G8: Average | H8: Top Third
A10: Number of herds in sample | B10: 22 | C10: 68 | D10: 22 | F10: =B10 -> 22 | G10: 68 | H10: 22
A11: Average herd size (cows to bull) | B11: 53.63636364 | C11: 90.48529412 | D11: 101.2272727 | F11: 53.63636364 | G11: 90.48529412 | H11: 101.2272727
A13: Calf output | B13: 495.3844915 | C13: 535.9133496 | D13: 587.7681365 | F13: =B13/(B$75*(B$66/100)) -> 2.05879513 | G13: 2.100788172 | H13: 2.214514469
A14: Other income | B14: 2.227966102 | C14: 4.672639363 | D14: 8.246856758 | F14: 0.0092593245 | G14: 0.01831681467 | H14: 0.03107140806
A15: Gross Output | B15: 497.6124576 | C15: 540.5859889 | D15: 596.0149933 | F15: 2.068054454 | G15: 2.119104987 | H15: 2.245585877
A16: Replacement costs | B16: 82.65565883 | C16: 55.64057434 | D16: 24.5434177 | F16: 0.343513111 | G16: 0.2181118656 | H16: 0.09247141899
A17: Output less replacement costs | B17: 414.9567988 | C17: 484.9454146 | D17: 571.4715756 | F17: 1.724541343 | G17: =C17/(C$75*(C$66/100)) -> 1.900993121 | H17: 2.153114458
A19: Variable Costs
A20: Purchased feed including minerals | B20: 30.125911 | C20: 25.2963215 | D20: 24.24685206 | F20: =B20/(B$75*(B$66/100)) -> 0.1252018985 | G20: =C20/(C$75*(C$66/100)) -> 0.09916195043 | H20: =D20/(D$75*(D$66/100)) -> 0.09135405848
A21: Home-grown feed | B21: 3.402542373 | C21: 11.06935734 | D21: 15.23133186 | F21: 0.01414080938 | G21: 0.04339204273 | H21: 0.05738658273
A22: Purchased forage | B22: 8.294025439 | C22: 5.119270394 | D22: 6.827198345 | F22: 0.03446958771 | G22: 0.02006761485 | H22: 0.02572260825
A23: Home-grown forage (excludes contract) | B23: 45.02272787 | C23: 36.70034538 | D23: 31.60915578 | F23: 0.1871123833 | G23: 0.1438658909 | H23: 0.1190927655
A24: Total feed and forage | B24: 86.84520668 | C24: 78.18529461 | D24: 77.91453804 | F24: 0.3609246789 | G24: 0.3064874989 | H24: 0.2935560149
A25: Vet and medicine | B25: 35.04204237 | C25: 34.1338014 | D25: 36.19225415 | F25: 0.1456331141 | G25: 0.1338050009 | H25: 0.1363603529
A26: Bedding | B26: 31.93811864 | C26: 26.45766943 | D26: 28.38774136 | F26: 0.13273335 | G26: 0.1037144513 | H26: 0.1069555494
A27: Other livestock expenses | B27: 20.75983051 | C27: 18.45996262 | D27: 15.49880557 | F27: 0.08627689941 | G27: 0.07236332358 | H27: 0.05839433452
A28: Total variable costs | B28: 174.5851982 | C28: 157.2367281 | D28: 157.9933391 | F28: 0.7255680425 | G28: 0.6163702747 | H28: 0.5952662517
A30: Gross Margin | B30: 240.3716006 | C30: 327.7086865 | D30: 413.4782364 | F30: =B30/(B$75*(B$66/100)) -> 0.9989733007 | G30: =C30/(C$75*(C$66/100)) -> 1.284622846 | H30: =D30/(D$75*(D$66/100)) -> 1.557848206
A32: Fixed Costs
A33: Labour - paid | B33: 81.37639433 | C33: 70.81472832 | D33: 46.1887819 | F33: =B33/(B$75*(B$66/100)) -> 0.3381965467 | G33: =C33/(C$75*(C$66/100)) -> 0.2775947712 | H33: =D33/(D$75*(D$66/100)) -> 0.1740239381
A34: Machinery repairs and spares | B34: 37.0572387 | C34: 22.63422088 | D34: 23.47959528 | F34: 0.1540081772 | G34: 0.08872647704 | H34: 0.08846329063
A35: Contracting | B35: 63.64494603 | C35: 36.99776571 | D35: 26.57153611 | F35: 0.2645054643 | G35: 0.1450317829 | H35: 0.1001126933
A36: Electricity | B36: 5.05779661 | C36: 2.690030879 | D36: 2.68272115 | F36: 0.02101996975 | G36: 0.01054496041 | H36: 0.01010759929
A37: Fuel | B37: 32.43725335 | C37: 22.21320694 | D37: 20.69476901 | F37: 0.1348077309 | G37: 0.08707609621 | H37: 0.07797099327
A38: Property maintenance and water | B38: 29.17171115 | C38: 18.81405904 | D38: 13.92810207 | F38: 0.1212362879 | G38: 0.07375138671 | H38: 0.05247644718
A39: Land Rent (Actual) | B39: 66.36500476 | C39: 53.16298747 | D39: 53.59894109 | F39: 0.275809903 | G39: 0.2083996888 | H39: 0.2019429486
A40: Overheads | B40: 30.8476147 | C40: 18.67752736 | D40: 16.89268756 | F40: 0.1282012659 | G40: 0.07321618053 | H40: 0.06364601735
A41: Cash Only fixed costs | B41: 345.9579596 | C41: 246.0045266 | D41: 204.0371342 | F41: 1.437785346 | G41: 0.9643413438 | H41: 0.7687439277
A42: Cash Only Cost of Production | B42: 603.1988167 | C42: 458.881829 | D42: 386.573891 | F42: 2.506866499 | G42: 1.798823484 | H42: 1.456481598
A43: Cash Only Net Margin | B43: -105.586359 | C43: 81.70415995 | D43: 209.4411023 | F43: -0.4388120449 | G43: 0.3202815025 | H43: 0.7891042787
A45: Depreciation | B45: 112.977662 | C45: 63.49035808 | D45: 47.63387307 | F45: =B45/(B$75*(B$66/100)) -> 0.4695299594 | G45: 0.2488831327 | H45: 0.1794685601
A46: Finance costs (Imputed) | B46: 30.85227183 | C46: 32.26918568 | D46: 31.79370693 | F46: 0.1282206207 | G46: 0.12649568 | H46: 0.1197880927
A47: Labour - unpaid (Imputed) | B47: 85.01831402 | C47: 45.37227601 | D47: 40.88703776 | F47: 0.3533321972 | G47: 0.1778599859 | H47: 0.154048733
A48: Land Rent (Imputed) | B48: 81.11278359 | C48: 55.33290532 | D48: 43.85367907 | F48: 0.3371009926 | G48: 0.2169057985 | H48: 0.1652260488
A49: Non-Cash fixed costs | B49: 309.9610314 | C49: 196.4647251 | D49: 164.1682968 | F49: 1.28818377 | G49: 0.7701445971 | H49: 0.6185314346
A50: Full Investment fixed costs | B50: 655.918991 | C50: 442.4692517 | D50: 368.205431 | F50: 2.725969116 | G50: 1.734485941 | H50: 1.387275362
A51: Full Investment Cost of Production | B51: 913.1598481 | C51: 655.3465541 | D51: 550.7421878 | F51: 3.795050269 | G51: 2.568968081 | H51: 2.075013033
A52: Full Investment Net Margin | B52: -415.5473904 | C52: -114.7605651 | D52: 45.27280544 | F52: -1.726995815 | G52: -0.4498630945 | H52: 0.1705728441
A54: Physical Performance
A56: Cow to bull ratio | B56: 29.5 | C56: 31.9470405 | D56: 30.58365755
A57: Age at first calving
A58: Herds 2 year policy (%) | B58: 45.45454545 | C58: 52.94117647 | D58: 59.09090909
A59: Herds 2.5 year policy (%) | B59: 27.27272727 | C59: 27.94117647 | D59: 27.27272727
A60: Herds more than 2.5 year policy (%) | B60: 27.27272727 | C60: 19.11764706 | D60: 13.63636364
A62: Percentage of cows/heifers scanned in-calf (%) | B62: 92.24682538 | C62: 90.94745212 | D62: 94.02733342
A63: Calves born alive per 100 cows/heifers to bull | B63: 86.01694915 | C63: 87.79457175 | D63: 91.33363269
A64: Calves born dead per 100 cows/heifers to bull | B64: 2.796610169 | C64: 2.746627661 | D64: 2.828917827
A65: Calves died from birth to weaning per 100 cows/heifers to bull | B65: 3.220338983 | C65: 3.185437998 | D65: 3.277952402
A66: Calves weaned per 100 cows/heifers to bull* | B66: 82.79661017 | C66: 84.91792621 | D66: 88.45981141
A67: Calf losses from birth to weaning (% of born alive) | B67: 3.743842365 | C67: 3.62828582 | D67: 3.588987217
A68: Calving period (first to last calf - weeks) | B68: 16.40133172 | C68: 15.25130705 | D68: 13.4555135
A69: Cows and heifers calving in first 3 weeks (%) | B69: 35.49789602 | C69: 36.62009308 | D69: 40.51563707
A70: Empty cows/heifers (%) | B70: 12.03389831 | C70: 10.4014302 | D70: 6.870229008
A71: Cow mortality (%) | B71: 1.779661017 | C71: 1.820250284 | D71: 1.616524472
A72: Herd replacement rate (%) | B72: 16.27118644 | C72: 17.06484642 | D72: 14.54872025
A74: Average age at weaning (days) | B74: 232.8802456 | C74: 223.9161722 | D74: 216.4563452
A75: Average weight at weaning (kg per head) | B75: 290.6141243 | C75: 300.4089949 | D75: 300.041624
A76: Daily liveweight gain to weaning (kg per day) | B76: 1.070478392 | C76: 1.163007093 | D76: 1.200083992
A77: Weaned calf weight produced per forage hectare (kg at 200 days) | B77: 176.7104766 | C77: 288.5496313 | D77: 337.2847394
A79: Return per calf (£ per head) | B79: 598.8574207 | C79: 636.1616919 | D79: 665.598802
A80: Calf price (£ per kg lwt) | B80: 2.068242749 | C80: 2.124456124 | D80: 2.231258691
A81: Weaned calves sold at weaning (%) | B81: 10.85069927 | C81: 6.320385565 | D81: 4.280796288
A82: Weaned calves retained at weaning (%) | B82: 89.14930073 | C82: 93.67961443 | D82: 95.71920371
A84: Total FW cow concentrate use (kg per cow) | B84: 123.8559322 | C84: 136.1644718 | D84: 114.5801507
A85: Total DM cow concentrate use (kg per cow) | B85: 75.22838979 | C85: 75.31994086 | D85: 87.65114357
A86: Average concentrate cost (£ per tonne) | B86: 155.3100776 | C86: 126.253459 | D86: 153.1135282
A87: Total FW forage (kg per cow) | B87: 4031.525424 | C87: 3381.984399 | D87: 3555.321061
A88: Total DM forage (kg per cow) | B88: 1639.792368 | C88: 1338.166749 | D88: 1291.533457
A89: Creep feed fed (kg per calf weaned) | B89: 50.8290682 | C89: 60.23732084 | D89: 52.68020336
A91: Number of grazing weeks | B91: 33.10736401 | C91: 33.00885206 | D91: 31.31990558
A92: Stocking rate (LU per ha) | B92: 0.9467443599 | C92: 1.395316757 | D92: 1.546066324
A93: Inorganic nitrogen use (kg per ha) | B93: 29.18526211 | C93: 30.06337362 | D93: 17.94612063
A95: Labour use - paid hours per cow | B95: 7.039531499 | C95: 6.16299311 | D95: 4.975274269
A96: Labour use - unpaid hours per cow | B96: 9.551338391 | C96: 4.70161158 | D96: 4.177343333
A98: *includes calves purchased to put on cows

Sheet Autumn
F1: AHDB Beef and Lamb
F2: Stocktake
F3: Costs of Production 2015/16
C5: Autumn Calving Suckler Herds
B7: (£ per cow to bull) | F7: (£ per lwt kg calf output)
A8: Financial Performance (£ per cow to bull) | B8: Bottom Third | C8: Average | D8: Top Third | F8: Bottom Third | G8: Average | H8: Top Third
A10: Number of herds in sample | B10: 4 | C10: 13 | D10: 4 | F10: =B10 -> 4 | G10: 13 | H10: 4
A11: Average herd size (cows to bull) | B11: 42.75 | C11: 67.38461538 | D11: 102.75 | F11: 42.75 | G11: 67.38461538 | H11: 102.75
A13: Calf output | B13: 432.8654971 | C13: 589.7445205 | D13: 649.4457421 | F13: =B13/(B$75*(B$66/100)) -> 1.897462189 | G13: 1.946997058 | H13: 1.942806605
A14: Other income | B14: 0 | C14: 0 | D14: 0 | F14: 0 | G14: 0 | H14: 0
A15: Gross Output | B15: 432.8654971 | C15: 589.7445205 | D15: 649.4457421 | F15: 1.897462189 | G15: 1.946997058 | H15: 1.942806605
A16: Replacement costs | B16: 122.4444444 | C16: 48.20068493 | D16: 10.4416545 | F16: 0.5367341707 | G16: 0.1591309261 | H16: 0.03123604331
A17: Output less replacement costs | B17: 310.4210526 | C17: 541.5438356 | D17: 639.0040876 | F17: 1.360728018 | G17: 1.787866132 | H17: 1.911570561
A19: Variable Costs
A20: Purchased feed including minerals | B20: 27.36623074 | C20: 22.64153366 | D20: 7.712890514 | F20: =B20/(B$75*(B$66/100)) -> 0.1199596374 | G20: =C20/(C$75*(C$66/100)) -> 0.07474931583 | H20: =D20/(D$75*(D$66/100)) -> 0.02307298926
A21: Home-grown feed | B21: 0 | C21: 3.50662106 | D21: 0 | F21: 0 | G21: 0.01157684497 | H21: 0
A22: Purchased forage | B22: 57.80116959 | C22: 11.28310502 | D22: 0 | F22: 0.2533709305 | G22: 0.03725032029 | H22: 0
A23: Home-grown forage (excludes contract) | B23: 24.1262115 | C23: 44.59825581 | D23: 49.45774804 | F23: 0.1057570409 | G23: 0.1472377781 | H23: 0.1479520664
A24: Total feed and forage | B24: 109.2936118 | C24: 82.02951555 | D24: 57.17063855 | F24: 0.4790876089 | G24: 0.2708142592 | H24: 0.1710250556
A25: Vet and medicine | B25: 18.1122807 | C25: 26.41803653 | D25: 25.63260341 | F25: 0.07939502692 | G25: 0.08721715523 | H25: 0.07667952527
A26: Bedding | B26: 16.88304094 | C26: 25.25228311 | D26: 24.8540146 | F26: 0.07400666496 | G26: 0.08336850822 | H26: 0.07435038924
A27: Other livestock expenses | B27: 21.36538012 | C27: 25.10231735 | D27: 28.02189781 | F27: 0.09365496027 | G27: 0.08287340759 | H27: 0.08382706146
A28: Total variable costs | B28: 165.6543136 | C28: 158.8021525 | D28: 135.6791544 | F28: 0.726144261 | G28: 0.5242733302 | H28: 0.4058820316
A30: Gross Margin | B30: 144.766739 | C30: 382.7416831 | D30: 503.3249332 | F30: =B30/(B$75*(B$66/100)) -> 0.6345837574 | G30: =C30/(C$75*(C$66/100)) -> 1.263592801 | H30: =D30/(D$75*(D$66/100)) -> 1.50568853
A32: Fixed Costs
A33: Labour - paid | B33: 35.38666492 | C33: 30.74214452 | D33: 25.31083898 | F33: =B33/(B$75*(B$66/100)) -> 0.1551171418 | G33: =C33/(C$75*(C$66/100)) -> 0.1014928716 | H33: =D33/(D$75*(D$66/100)) -> 0.0757169721
A34: Machinery repairs and spares | B34: 24.04648648 | C34: 21.92025799 | D34: 25.03278828 | F34: 0.105407567 | G34: 0.07236807859 | H34: 0.07488518786
A35: Contracting | B35: 7.252493478 | C35: 38.14062127 | D35: 50.36820535 | F35: 0.03179124288 | G35: 0.1259183847 | H35: 0.1506756849
A36: Electricity | B36: 1.929824561 | C36: 1.341324201 | D36: 0.8637469586 | F36: 0.008459369392 | G36: 0.00442828069 | H36: 0.002583885284
A37: Fuel | B37: 16.82779096 | C37: 19.40090574 | D37: 22.54353204 | F37: 0.07376447717 | G37: 0.06405062713 | H37: 0.06743861744
A38: Property maintenance and water | B38: 24.92718098 | C38: 15.29191974 | D38: 9.679920309 | F38: 0.1092680838 | G38: 0.05048511974 | H38: 0.02895732759
A39: Land Rent (actual) | B39: 33.32953292 | C39: 54.30764815 | D39: 81.67840089 | F39: 0.1460997214 | G39: 0.1792926046 | H39: 0.2443396367
A40: Overheads | B40: 18.41598464 | C40: 18.93378341 | D40: 16.87731914 | F40: 0.0807263105 | G40: 0.06250845799 | H40: 0.05048823169
A41: Cash Only fixed costs | B41: 162.115959 | C41: 200.078605 | D41: 232.3547519 | F41: 0.7106339139 | G41: 0.6605444251 | H41: 0.6950855436
A42: Cash Only Cost of Production | B42: 450.214717 | C42: 407.0814425 | D42: 378.4755608 | F42: 1.973512346 | G42: 1.343948681 | H42: 1.132203619
A43: Cash Only Net Margin | B43: -17.3492199 | C43: 182.6630781 | D43: 270.9701813 | F43: -0.07605015646 | G43: 0.6030483763 | H43: 0.8106029861
A45: Depreciation | B45: 55.99215305 | C45: 72.8406733 | D45: 63.46238847 | F45: =B45/(B$75*(B$66/100)) -> 0.2454411221 | G45: 0.2404779895 | H45: 0.1898467254
A46: Finance costs (Imputed) | B46: 23.54001746 | C46: 30.52260729 | D46: 36.58431246 | F46: 0.1031874644 | G46: 0.100768086 | H46: 0.1094413886
A47: Labour - unpaid (Imputed) | B47: 65.44299766 | C47: 59.27042992 | D47: 48.71694175 | F47: 0.2868688182 | G47: 0.1956768544 | H47: 0.1457359561
A48: Land Rent (Imputed) | B48: 52.13080791 | C48: 37.73921312 | D48: 27.22613363 | F48: 0.2285149488 | G48: 0.1245931659 | H48: 0.08144654558
A49: Non-Cash fixed costs | B49: 197.1059761 | C49: 200.3729236 | D49: 175.9897763 | F49: 0.8640123535 | G49: 0.6615160958 | H49: 0.5264706158
A50: Full Investment fixed costs | B50: 359.221935 | C50: 400.4515286 | D50: 408.3445283 | F50: 1.574646267 | G50: 1.322060521 | H50: 1.221556159
A51: Full Investment Cost of Production | B51: 647.3206931 | C51: 607.4543661 | D51: 554.4653371 | F51: 2.837524699 | G51: 2.005464777 | H51: 1.658674234
A52: Full Investment Net Margin | B52: -214.455196 | C52: -17.70984556 | D52: 94.98040497 | F52: -0.9400625099 | G52: -0.0584677195 | H52: 0.2841323703
A54: Physical Performance
A56: Cow to bull ratio | B56: 27.58064516 | C56: 36.04938272 | D56: 41.1
A57: Age at first calving
A58: Herds 2 year policy (%) | B58: 50 | C58: 53.84615385 | D58: 100
A59: Herds 2.5 year policy (%) | B59: 25 | C59: 30.76923077 | D59: 0
A60: Herds more than 2.5 year policy (%) | B60: 25 | C60: 15.38461538 | D60: 0
A62: Percentage of cows/heifers scanned in-calf (%) | B62: 83.33416667 | C62: 90.33910311 | D62: 93.48367306
A63: Calves born alive per 100 cows/heifers to bull | B63: 83.62573099 | C63: 88.58447489 | D63: 89.7810219
A64: Calves born dead per 100 cows/heifers to bull | B64: 1.754385965 | C64: 3.652968037 | D64: 4.622871046
A65: Calves died from birth to weaning per 100 cows/heifers to bull | B65: 1.754385965 | C65: 1.141552511 | D65: 1.216545012
A66: Calves weaned per 100 cows/heifers to bull* | B66: 81.87134503 | C66: 87.44292237 | D66: 88.56447689
A67: Calf losses from birth to weaning (% of born alive) | B67: 2.097902098 | C67: 1.288659794 | D67: 1.35501355
A68: Calving period (first to last calf - weeks) | B68: 12.96491228 | C68: 11.88307241 | D68: 12.68752172
A69: Cows and heifers calving in first 3 weeks (%) | B69: 33.51447276 | C69: 33.21716873 | D69: 35.01393899
A70: Empty cows/heifers (%) | B70: 15.20467836 | C70: 9.132420091 | D70: 7.542579075
A71: Cow mortality (%) | B71: 5.847953216 | C71: 2.168949772 | D71: 0.7299270073
A72: Herd replacement rate (%) | B72: 23.39181287 | C72: 14.15525114 | D72: 10.2189781
A74: Average age at weaning (days) | B74: 282.3857143 | C74: 279.5953003 | D74: 283.3598901
A75: Average weight at weaning (kg per head) | B75: 278.6428571 | C75: 346.3968673 | D75: 377.4450558
A76: Daily liveweight gain to weaning (kg per day) | B76: 0.8775226757 | C76: 1.125577434 | D76: 1.236964845
A77: Weaned calf weight produced per forage hectare (kg at 200 days) | B77: 186.294289 | C77: 327.6339417 | D77: 338.0787896
A79: Return per calf (£ per head) | B79: 528.7142857 | C79: 674.4336815 | D79: 733.3027473
A80: Calf price (£ per kg lwt) | B80: 1.878561607 | C80: 1.937610334 | D80: 1.940456963
A81: Weaned calves sold at weaning (%) | B81: 32.66499582 | C81: 9.055677065 | D81: 5.71060541
A82: Weaned calves retained at weaning (%) | B82: 67.33500418 | C82: 90.94432293 | D82: 94.28939459
A84: Total FW cow concentrate use (kg per cow) | B84: 149.4152047 | C84: 112.7739723 | D84: 14.45255488
A85: Total DM cow concentrate use (kg per cow) | B85: 86.84795333 | C85: 74.46095856 | D85: 12.57372275
A86: Average concentrate cost (£ per tonne) | B86: 150.886635 | C86: 141.7818806 | D86: 287.8787851
A87: Total FW forage (kg per cow) | B87: 3532.163743 | C87: 5217.123288 | D87: 6508.515815
A88: Total DM forage (kg per cow) | B88: 1227.953216 | C88: 1542.913242 | D88: 1579.927007
A89: Creep feed fed (kg per calf weaned) | B89: 44.78571415 | C89: 40.16971308 | D89: 0
A91: Number of grazing weeks | B91: 39.62891159 | C91: 33.94717627 | D91: 31.43748016
A92: Stocking rate (LU per ha) | B92: 1.078816317 | C92: 1.693225087 | D92: 1.711155177
A93: Inorganic nitrogen use (kg per ha) | B93: 23.15252389 | C93: 50.21214583 | D93: 50.47292379
A95: Labour use - paid hours per cow | B95: 3.172592074 | C95: 3.007773422 | D95: 2.390117115
A96: Labour use - unpaid hours per cow | B96: 6.215942989 | C96: 5.763671118 | D96: 4.674181473
A100: *includes calves purchased to put on cows

Sheet Combined BreedFin
F1: AHDB Beef and Lamb
F2: Stocktake
F3: Costs of Production 2015/16
C5: Combined Breeding Herd/Beef Finishing
B7: (£ per cow to bull) | F7: (£ per dwt kg output)
A8: Financial Performance (£ per cow to bull) | B8: Bottom third | C8: Average | D8: Top third | F8: Bottom Third | G8: Average | H8: Top Third
A10: Number of herds in sample | B10: 9 | C10: 29 | D10: 9 | F10: =B10 -> 9 | G10: 29 | H10: 9
A11: Average herd size (cows to bull) | B11: 50.66666667 | C11: 90.34482759 | D11: 90.66666667 | F11: 50.66666667 | G11: 90.34482759 | H11: 90.66666667
A13: Calf output | B13: 1031.1552 | C13: 1076.453201 | D13: 1131.211846 | F13: =B13/(B$78*(B$66/100)) -> 3.483651996 | G13: 3.678399877 | H13: 3.994720872
A14: Other income | B14: 8.340980657 | C14: 17.95847749 | D14: 18.62499615 | F14: 0.02817914695 | G14: 0.061366775 | H14: 0.06577164227
A15: Gross Output | B15: 1039.496181 | C15: 1094.411679 | D15: 1149.836842 | F15: 3.511831143 | G15: 3.739766652 | H15: 4.060492514
A16: Replacement costs | B16: 69.91185924 | C16: 49.35382922 | D16: 34.83953431 | F16: 0.2361900401 | G16: 0.1686493376 | H16: 0.1230310798
A17: Output less replacement costs | B17: 969.5843215 | C17: 1045.05785 | D17: 1114.997308 | F17: 3.275641103 | G17: 3.571117314 | H17: 3.937461434
A19: Variable Costs
A20: Purchased feed including minerals | B20: 126.6698788 | C20: 117.0033766 | D20: 61.98579356 | F20: =B20/(B$78*(B$66/100)) -> 0.427941183 | G20: 0.3998178515 | H20: =D20/(D$78*(D$66/100)) -> 0.2188944044
A21: Home-grown feed | B21: 79.81154625 | C21: 76.98432185 | D21: 84.48804111 | F21: 0.2696351164 | G21: 0.2630668195 | H21: 0.2983580329
A22: Purchased forage | B22: 7.430186703 | C22: 12.09847116 | D22: 14.95935574 | F22: 0.02510212307 | G22: 0.04134226621 | H22: 0.05282693141
A23: Home-grown forage (excludes contract) | B23: 54.99439308 | C23: 65.15414232 | D23: 65.65840165 | F23: 0.1857929119 | G23: 0.2226413455 | H23: 0.2318637206
A24: Total feed and forage | B24: 268.9060048 | C24: 271.240312 | D24: 227.091592 | F24: 0.9084713343 | G24: 0.9268682827 | H24: 0.8019430893
A25: Vet and medicine | B25: 42.31261583 | C25: 51.92191233 | D25: 58.31201842 | F25: 0.1429488292 | G25: 0.1774248576 | H25: 0.2059209668
A26: Bedding | B26: 86.48948147 | C26: 65.31515346 | D26: 62.56195202 | F26: 0.2921958351 | G26: 0.2231915444 | H26: 0.2209290297
A27: Other livestock expenses | B27: 44.89531048 | C27: 40.11989594 | D27: 34.68532627 | F27: 0.151674198 | G27: 0.1370956212 | H27: 0.122486515
A28: Total variable costs | B28: 442.6034126 | C28: 428.5972737 | D28: 382.6508888 | F28: 1.495290197 | G28: 1.464580306 | H28: 1.351279601
A30: Gross Margin | B30: 526.9809089 | C30: 616.460576 | D30: 732.3464193 | F30: =B30/(B$78*(B$66/100)) -> 1.780350907 | G30: =C30/(C$78*(C$66/100)) -> 2.106537009 | H30: =D30/(D$78*(D$66/100)) -> 2.586181834
A32: Fixed Costs
A33: Labour - paid | B33: 177.2578357 | C33: 123.6194808 | D33: 31.35819752 | F33: =B33/(B$78*(B$66/100)) -> 0.5988474026 | G33: 0.4224260585 | H33: =D33/(D$78*(D$66/100)) -> 0.1107372121
A34: Machinery repairs and spares | B34: 39.47565262 | C34: 35.70023412 | D34: 43.02355536 | F34: 0.1333644402 | G34: 0.1219929827 | H34: 0.1519318377
A35: Contracting | B35: 68.14782918 | C35: 67.76750454 | D35: 74.86733528 | F35: 0.2302304456 | G35: 0.2315715909 | H35: 0.264383818
A36: Electricity | B36: 6.188250372 | C36: 4.213636273 | D36: 2.709087087 | F36: 0.02090636866 | G36: 0.01439861866 | H36: 0.009566772807
A37: Fuel | B37: 67.83898431 | C37: 40.03531604 | D37: 28.32307823 | F37: 0.2291870449 | G37: 0.1368065991 | H37: 0.1000191009
A38: Property maintenance and water | B38: 62.51958209 | C38: 43.63992861 | D38: 37.00515685 | F38: 0.2112159905 | G38: 0.1491240937 | H38: 0.1306786814
A39: Land Rent (Actual) | B39: 60.12815939 | C39: 85.11877041 | D39: 115.7432431 | F39: 0.2031368144 | G39: 0.2908634339 | H39: 0.4087315303
A40: Overheads | B40: 75.37048052 | C40: 51.49508295 | D40: 41.38222979 | F40: 0.2546314317 | G40: 0.1759663184 | H40: 0.1461357195
A41: Cash Only fixed costs | B41: 556.9267742 | C41: 451.5899538 | D41: 374.4118832 | F41: 1.881519939 | G41: 1.543149696 | H41: 1.322184673
A42: Cash Only Cost of Production | B42: 1069.442046 | C42: 929.5410567 | D42: 791.9023063 | F42: 3.613000175 | G42: 3.176379339 | H42: 2.796495353
A43: Cash Only Net Margin | B43: -29.94586531 | C43: 164.8706222 | D43: 357.9345361 | F43: -0.101169032 | G43: 0.5633873128 | H43: 1.263997161
A45: Depreciation | B45: 238.9803774 | C45: 132.9965144 | D45: 101.5084369 | F45: =B45/(B$78*(B$66/100)) -> 0.8073706739 | G45: 0.4544687697 | H45: 0.3584632472
A46: Finance costs (Imputed) | B46: 78.81180122 | C46: 64.55813364 | D46: 62.63870183 | F46: 0.2662575805 | G46: 0.2206046956 | H46: 0.2212000612
A47: Labour - unpaid (Imputed) | B47: 140.1083935 | C47: 94.90595848 | D47: 146.6519874 | F47: 0.4733418255 | G47: 0.3243077038 | H47: 0.5178815594
A48: Land Rent (Imputed) | B48: 140.2990386 | C48: 75.48268319 | D48: 62.32328475 | F48: 0.4739859003 | G48: 0.257935498 | H48: 0.2200862086
A49: Non-Cash fixed costs | B49: 598.1996107 | C49: 367.9432897 | D49: 373.1224109 | F49: 2.02095598 | G49: 1.257316667 | H49: 1.317631076
A50: Full Investment fixed costs | B50: 1155.126385 | C50: 819.5332434 | D50: 747.5342941 | F50: 3.902475919 | G50: 2.800466363 | H50: 2.639815749
A51: Full Investment Cost of Production | B51: 1667.641657 | C51: 1297.484346 | D51: 1165.024717 | F51: 5.633956155 | G51: 4.433696006 | H51: 4.11412643
A52: Full Investment Net Margin | B52: -628.1454761 | C52: -203.0726675 | D52: -15.18787482 | F52: -2.122125012 | G52: -0.6939293543 | H52: -0.05363391546
A54: Physical Performance
A56: Cow to bull ratio | B56: 27.63636364 | C56: 31.26491647 | D56: 30.79245283
A57: Age at first calving
A58: Herds 2 year policy (%) | B58: 33.33333333 | C58: 43.80165289 | D58: 11.11111111
A59: Herds 2.5 year policy (%) | B59: 55.55555556 | C59: 39.66942149 | D59: 77.77777778
A60: Herds more than 2.5 year policy (%) | B60: 11.11111111 | C60: 16.52892562 | D60: 11.11111111
A62: Percentage of cows/heifers scanned in-calf (%) | B62: 96.42597561 | C62: 92.14641173 | D62: 94.52036741
A63: Calves born alive per 100 cows/heifers to bull | B63: 90.78947368 | C63: 89.92366412 | D63: 89.95098039
A64: Calves born dead per 100 cows/heifers to bull | B64: 1.754385965 | C64: 2.519083969 | D64: 4.044117647
A65: Calves died after birth per 100 cows/heifers to bull | B65: 2.192982456 | C65: 2.633587786 | D65: 1.838235294
A66: Calves weaned per 100 cows/heifers to bull* | B66: 89.03508772 | C66: 87.7480916 | D66: 88.60294118
A67: Calf losses from birth to sale (% of born alive) | B67: 2.415458937 | C67: 2.928692699 | D67: 2.04359673
A68: Calving period (first to last calf - weeks) | B68: 22.85714286 | C68: 15.59952339 | D68: 12.61136713
A69: Cows and heifers calving in first 3 weeks (%) | B69: 28.16842178 | C69: 33.27147399 | D69: 29.20798448
A70: Empty cows/heifers (%) | B70: 8.114035088 | C70: 8.549618321 | D70: 7.598039216
A71: Cow mortality (%) | B71: 1.315789474 | C71: 1.717557252 | D71: 1.593137255
A72: Herd replacement rate (%) | B72: 14.47368421 | C72: 15 | D72: 12.25490196
A74: Average age at weaning (days) | B74: 242.8399015 | C74: 233.6180948 | D74: 224.5103734
A75: Average age at sale (days) | B75: 622.1341218 | C75: 575.6922071 | D75: 634.4797768
A76: Average weight at weaning (kg per head) | B76: 292.5862076 | C76: 315.2544586 | D76: 292.3789765
A77: Average liveweight at sale (kg per head) | B77: 609.9635106 | C77: 595.1769699 | D77: 571.2691771
A78: Average carcase weight (kg) | B78: 332.451335 | C78: 333.5020704 | D78: 319.6019108
A79: Daily liveweight gain birth to sale (kg per day) | B79: 0.9639741653 | C79: 1.048084563 | D79: 0.8795914372
A81: Calf return per head finished (£) | B81: 1148.67386 | C81: 1255.204945 | D81: 1331.656831
A82: Calf return per head store (£) | B82: 1400 | C82: 969.6863636 | D82: 898.5505618
A83: Liveweight sale price all animals (£ per kg lwt) | B83: 1.90472633 | C83: 2.072186184 | D83: 2.240046154
A84: Liveweight sale price: finished cattle (£ per kg lwt) | B84: 1.860121251 | C84: 2.0578869 | D84: 2.27137488
A85: Deadweight sale price: finished cattle (£ per kg dwt) | B85: 3.45880095 | C85: 3.786507066 | D85: 4.188303781
A86: Calves sold finished (%) | B86: 96.05522682 | C86: 90.42228994 | D86: 87.58716876
A87: Calves sold store (%) | B87: 3.944773176 | C87: 9.577710057 | D87: 12.41283124
A89: Total FW cow concentrate use (kg per cow) | B89: 223.7938595 | C89: 152.1660294 | D89: 170.6188689
A90: Average concentrate cost (£ per tonne) | B90: 118.6925694 | C90: 152.9962203 | D90: 145.7588908
A91: Total FW forage (kg per cow) | B91: 4096.929826 | C91: 3001.48855 | D91: 3285.049021
A92: Total DM forage (kg per cow) | B92: 1373.214913 | C92: 1223.485497 | D92: 1310.052697
A93: Total FW calf concentrate use (kg per calf) | B93: 1828.619332 | C93: 1106.928602 | D93: 701.5272005
A94: Total FW forage (kg per calf) | B94: 4433.333327 | C94: 4221.919894 | D94: 4594.630404
A95: Total DM forage (kg per calf) | B95: 1350.879683 | C95: 1334.223767 | D95: 1434.556481
A97: Inorganic nitrogen use (kg per ha) | B97: 50.46831191 | C97: 58.44567893 | D97: 28.62675332

Sheet Combined BreedStore
F1: AHDB Beef and Lamb
F2: Stocktake
F3: Costs of Production 2015/16
C5: Combined Breeding Herd/Stores
B7: (£ per cow to bull) | F7: (£ per lwt kg calf output)
A8: Financial Performance (£ per cow to bull) | B8: Bottom third | C8: Average | D8: Top third | F8: Bottom Third | G8: Average | H8: Top Third
A10: Number of herds in sample | B10: 5 | C10: 17 | D10: 5 | F10: =B10 -> 5 | G10: 17 | H10: 5
A11: Average herd size (cows to bull) | B11: 63.6 | C11: 73.94117647 | D11: 78.6 | F11: 63.6 | G11: 73.94117647 | H11: 78.6
A13: Calf output | B13: 653.544399 | C13: 713.4291474 | D13: 914.3132309 | F13: =B13/(B$77*(B$66/100)) -> 1.735536706 | G13: =C13/(C$77*(C$66/100)) -> 1.893199702 | H13: =D13/(D$77*(D$66/100)) -> 2.016642837
A14: Other income | B14: 4.402515723 | C14: 1.113762928 | D14: 0 | F14: =B14/(B$77*(B$66/100)) -> 0.01169121432 | G14: =C14/(C$77*(C$66/100)) -> 0.002955550178 | H14: =D14/(D$77*(D$66/100)) -> 0
A15: Gross Output | B15: 657.9469147 | C15: 714.5429103 | D15: 914.3132309 | F15: 1.74722792 | G15: 1.896155253 | H15: 2.016642837
A16: Replacement costs | B16: 62.64144665 | C16: 80.53205092 | D16: 70.36050891 | F16: 0.1663491113 | G16: 0.2137048303 | H16: 0.1551897222
A17: Output less replacement costs | B17: 595.3054681 | C17: 634.0108594 | D17: 843.952722 | F17: 1.580878809 | G17: 1.682450422 | H17: 1.861453115
A19: Variable Costs
A20: Purchased feed including minerals | B20: 48.01683806 | C20: 80.59449974 | D20: 72.85604166 | F20: 0.1275123543 | G20: 0.2138705483 | H20: 0.1606939609
A21: Home-grown feed | B21: 37.13962264 | C21: 5.918854415 | D21: 3.691626001 | F21: 0.098627084 | G21: 0.01570663809 | H21: 0.008142385871
A22: Purchased forage | B22: 14.55820762 | C22: 10.23719175 | D22: 23.31288261 | F22: 0.03866042421 | G22: 0.02716604506 | H22: 0.05141974996
A23: Home-grown forage (excludes contract) | B23: 19.25422711 | C23: 42.5102817 | D23: 48.48920085 | F23: 0.05113106002 | G23: 0.1128079123 | H23: 0.106949562
A24: Total feed and forage | B24: 118.9688954 | C24: 139.2608276 | D24: 148.3497511 | F24: 0.3159309225 | G24: 0.3695511437 | H24: 0.3272056587
A25: Vet and medicine | B25: 26.41403195 | C25: 37.17721167 | D25: 32.4343342 | F25: 0.07014446466 | G25: 0.09865574786 | H25: 0.07153835856
A26: Bedding | B26: 32.65255346 | C26: 51.55772601 | D26: 53.60692254 | F26: 0.08671133156 | G26: 0.13681677 | H26: 0.1182373969
A27: Other livestock expenses | B27: 28.32952201 | C27: 38.90232899 | D27: 44.00765093 | F27: 0.07523119376 | G27: 0.1032336258 | H27: 0.09706489092
A28: Total variable costs | B28: 206.3650029 | C28: 266.8980943 | D28: 278.3986588 | F28: 0.5480179125 | G28: 0.7082572874 | H28: 0.614046305
A30: Gross Margin | B30: 388.9404652 | C30: 367.1127651 | D30: 565.5540632 | F30: 1.032860896 | G30: 0.974193135 | H30: 1.24740681
A32: Fixed Costs
A33: Labour - paid | B33: 94.99375847 | C33: 63.84193513 | D33: 56.28788646 | F33: 0.2522631284 | G33: 0.1694149069 | H33: 0.1241506294
A34: Machinery repairs and spares | B34: 32.41492658 | C34: 49.98164959 | D34: 29.92541674 | F34: 0.08608029536 | G34: 0.1326343961 | H34: 0.06600459806
A35: Contracting | B35: 34.79323524 | C35: 42.04323327 | D35: 19.17269452 | F35: 0.09239607434 | G35: 0.1115685237 | H35: 0.04228799909
A36: Electricity | B36: 2.727459119 | C36: 2.684283952 | D36: 2.139199924 | F36: 0.007242974499 | G36: 0.007123181885 | H36: 0.004718297908
A37: Fuel | B37: 26.06130097 | C37: 33.42114328 | D37: 28.72235394 | F37: 0.06920776079 | G37: 0.0886884125 | H37: 0.06335107858
A38: Property maintenance and water | B38: 21.19159218 | C38: 24.31755235 | D38: 33.07982983 | F38: 0.05627587986 | G38: 0.06453056065 | H38: 0.07296208742
A39: Land Rent (Actual) | B39: 155.830507 | C39: 107.5870865 | D39: 27.08459545 | F39: 0.4138197271 | G39: 0.2854997457 | H39: 0.05973877832
A40: Overheads | B40: 41.41054297 | C40: 36.47590543 | D40: 41.03931463 | F40: 0.1099688368 | G40: 0.09679471825 | H40: 0.09051781937
A41: Cash Only fixed costs | B41: 409.4233225 | C41: 360.3527895 | D41: 237.4512915 | F41: 1.087254677 | G41: 0.9562544457 | H41: 0.5237312881
A42: Cash Only Cost of Production | B42: 678.429772 | C42: 707.7829347 | D42: 586.2104592 | F42: 1.801621701 | G42: 1.878216563 | H42: 1.292967315
A43: Cash Only Net Margin | B43: -20.48285732 | C43: 6.759975598 | D43: 328.1027717 | F43: -0.0543937807 | G43: 0.01793868927 | H43: 0.7236755216
A45: Depreciation | B45: 94.65335912 | C45: 126.6747497 | D45: 148.0947182 | F45: 0.2513591721 | G45: 0.3361519491 | H45: 0.3266431486
A46: Finance costs (Imputed) | B46: 47.83344406 | C46: 55.34679706 | D46: 57.41901551 | F46: 0.1270253376 | G46: 0.1468716832 | H46: 0.1266454891
A47: Labour - unpaid (Imputed) | B47: 120.2047488 | C47: 122.4002874 | D47: 117.7824578 | F47: 0.3192128247 | G47: 0.3248089717 | H47: 0.259785314
A48: Land Rent (Imputed) | B48: 70.0108075 | C48: 50.62921718 | D48: 73.22872104 | F48: 0.1859190078 | G48: 0.1343528215 | H48: 0.1615159562
A49: Non-Cash fixed costs | B49: 332.7023594 | C49: 355.0510514 | D49: 396.5249125 | F49: 0.8835163423 | G49: 0.9421854255 | H49: 0.8745899079
A50: Full Investment fixed costs | B50: 742.125682 | C50: 715.4038409 | D50: 633.976204 | F50: 1.970771019 | G50: 1.898439871 | H50: 1.398321196
A51: Full Investment Cost of Production | B51: 1011.132131 | C51: 1062.833986 | D51: 982.7353717 | F51: 2.685138043 | G51: 2.820401989 | H51: 2.167557223
A52: Full Investment Net Margin | B52: -353.1852167 | C52: -348.2910758 | D52: -68.42214081 | F52: -0.937910123 | G52: -0.9242467363 | H52: -0.1509143863
A54: Physical Performance
A56: Cow to bull ratio | B56: 42.58928594 | C56: 38.12942371 | D56: 43.18681319
A57: Age at first calving
A58: Herds 2 year policy (%) | B58: 0 | C58: 43.80165289 | D58: 40
A59: Herds 2.5 year policy (%) | B59: 40 | C59: 39.66942149 | D59: 60
A60: Herds more than 2.5 year policy (%) | B60: 60 | C60: 16.52892562 | D60: 0
A62: Percentage of cows/heifers scanned in-calf (%) | B62: 95.24095238 | C62: 67.61922619 | D62: n.a
A63: Calves born alive per 100 cows/heifers to bull | B63: 87.42138365 | C63: 86.1575179 | D63: 88.80407125
A64: Calves born dead per 100 cows/heifers to bull | B64: 1.886792453 | C64: 3.102625298 | D64: 1.781170483
A65: Calves died after birth per 100 cows/heifers to bull | B65: 2.830188679 | C65: 2.704852824 | D65: 2.290076336
A66: Calves weaned per 100 cows/heifers to bull* | B66: 84.59119497 | C66: 84.24821002 | D66: 86.51399491
A67: Calf losses from birth to sale (% of born alive) | B67: 3.237410072 | C67: 3.139427516 | D67: 2.578796562
A68: Calving period (first to last calf - weeks) | B68: 9.492241841 | C68: 11.22529538 | D68: 13.27408215
A69: Cows and heifers calving in first 3 weeks (%) | B69: 50.59582533 | C69: 36.17928181 | D69: 30.66017952
A70: Empty cows/heifers (%) | B70: 10.6918239 | C70: 11.21718377 | D70: 10.43256997
A71: Cow mortality (%) | B71: 2.201257862 | C71: 1.909307876 | D71: 1.781170483
A72: Herd replacement rate (%) | B72: 12.26415094 | C72: 16.70644391 | D72: 16.5394402
A74: Average age at weaning (days) | B74: 219.6988848 | C74: 232.5731822 | D74: 235.5411765
A75: Average age at sale (days) | B75: 445.476 | C75: 496.5603865 | D75: 474.994695
A76: Average weight at weaning (kg per head) | B76: 269.565057 | C76: 293.1879134 | D76: 309.4558841
A77: Average liveweight at sale (kg per head) | B77: 445.16 | C77: 447.294686 | D77: 524.0583554
A78: Average carcase weight (kg) | B78: n.a | C78: 190 | D78: 335.7692308
A79: Daily liveweight gain birth to sale (kg per day) | B79: 0.9576366326 | C79: 0.8688940376 | D79: 1.052229363
A81: Calf return per head finished (£) | B81: n.a | C81: 508.56 | D81: 1207.613365
A82: Calf return per head store (£) | B82: 772.59152 | C82: 852.912 | D82: 1000.212821
A83: Liveweight sale price all animals (£ per kg lwt) | B83: 1.7493799 | C83: 1.930252337 | D83: 2.021057059
A84: Liveweight sale price: finished cattle (£ per kg lwt) | B84: n.a | C84: 1.43256338 | D84: 1.967708958
A85: Deadweight sale price: finished cattle (£ per kg dwt) | B85: n.a | C85: 2.676631579 | D85: 3.622162483
A86: Calves sold finished (%) | B86: 0 | C86: 0.9661835749 | D86: 27.5862069
A87: Calves sold store (%) | B87: 100 | C87: 99.03381643 | D87: 72.4137931
A89: Total FW cow concentrate use (kg per cow) | B89: 38.05031417 | C89: 31.26491643 | D89: 8.905852417
A90: Average concentrate cost (£ per tonne) | B90: 305.6762062 | C90: 219.4649432 | D90: 186
A91: Total FW forage (kg per cow) | B91: 3210.691824 | C91: 3431.583134 | D91: 3372.773537
A92: Total DM forage (kg per cow) | B92: 1970.597484 | C92: 1607.649164 | D92: 1575.763359
A93: Total FW calf concentrate use (kg per calf) | B93: 202.1760025 | C93: 371.4975845 | D93: 434.6021182
A94: Total FW forage (kg per calf) | B94: 2436 | C94: 2664.251208 | D94: 3470.212203
A95: Total DM forage (kg per calf) | B95: 1057.56 | C95: 1053.26087 | D95: 985.104775
A97: Inorganic nitrogen use (kg per ha) | B97: 2.521807524 | C97: 18.50998573 | D97: 35.20943574
